bitfinex/quotes_SOLUSD_20240920
["timestamp","ask_amount","ask_price","bid_price","bid_amount"]
[1726856441673,6.8578,145.82,145.76,15.9818718]
[1726856442082,6.8583,145.81,145.76,15.9818718]
[1726856443572,6.8579,145.82,145.76,15.9818718]
[1726856443958,24.027864,145.84,145.76,15.9818718]
[1726856444171,6.8581,145.82,145.76,15.9818718]
[1726856445379,6.8584,145.81,145.76,15.9818718]
[1726856445968,8.57371525,145.8,145.76,15.9818718]
[1726856446280,1.71501525,145.8,145.76,0.2450718]
[1726856446482,6.8601,145.77,145.76,0.2450718]
[1726856446661,23.902374,145.81,145.76,0.2450718]
[1726856446984,6.8592,145.79,145.76,0.2450718]
[1726856447576,6.8587,145.8,145.76,0.2450718]
[1726856448168,6.8592,145.79,145.76,0.2450718]
[1726856448764,1.71519562,145.8,145.76,0.2450718]
[1726856448952,6.8573,145.83,145.76,0.2450718]
[1726856449284,6.8567,145.85,145.76,1.61689723]
[1726856449450,7.16905938,145.86,145.78,15.7838]
[1726856449650,6.8556,145.87,145.78,15.7838]
[1726856449870,6.856,145.86,145.78,15.7838]
[1726856450579,6.856,145.86,145.79,1.37155192]
[1726856451075,6.8564,145.85,145.79,1.37155192]
[1726856451258,6.8564,145.85,145.78,15.7838]
[1726856451959,6.8569,145.84,145.78,17.15535437]
[1726856452163,1.71459766,145.83,145.78,15.7838]
[1726856452365,6.8569,145.84,145.78,15.7838]
[1726856452565,6.8569,145.84,145.78,17.15553223]
[1726856452760,6.8569,145.84,145.78,15.7838]
[1726856453064,6.8574,145.83,145.78,15.7838]
[1726856455665,6.8578,145.82,145.78,15.7838]
[1726856457087,23.902374,145.85,145.78,15.7838]
[1726856458266,6.8569,145.84,145.78,15.7838]
[1726856459563,6.8573,145.83,145.78,15.7838]
[1726856459979,30.758874,145.85,145.78,15.7838]
[1726856460296,8.57156827,145.84,145.78,15.7838]
[1726856460465,6.8564,145.85,145.78,15.7838]
[1726856460665,6.8564,145.85,145.79,1.37167593]
[1726856461085,6.8564,145.85,145.78,15.7838]
[1726856461283,6.8569,145.84,145.78,17.15548838]
[1726856461491,6.8574,145.83,145.78,17.15548838]
[1726856461797,6.8574,145.83,145.78,15.7838]
[1726856461971,6.8569,145.84,145.78,17.15548848]
[1726856462290,6.8569,145.84,145.79,1.37168868]
[1726856462474,6.8569,145.84,145.78,15.7838]
[1726856463995,6.856,145.86,145.79,1.37168868]
[1726856464168,6.856,145.86,145.78,35.58869543]
[1726856464499,35.34074,145.89,145.8,19.80489543]
[1726856464697,35.34074,145.89,145.81,1.3713116]
[1726856464986,35.34074,145.89,145.82,36.30059543]
[1726856465199,35.34074,145.89,145.84,6.328]
[1726856465568,1.71387074,145.88,145.84,6.328]
[1726856465771,1.71387074,145.88,145.82,16.4957]
[1726856465970,35.34074,145.89,145.82,16.4957]
[1726856466183,6.8552,145.88,145.82,16.4957]
[1726856466366,6.8554,145.87,145.82,16.4957]
[1726856467686,8.56915211,145.88,145.82,16.4957]
[1726856468088,6.855,145.88,145.82,16.4957]
[1726856468488,42.19534,145.89,145.82,16.4957]
[1726856468704,6.8549,145.88,145.82,16.4957]
[1726856469092,42.19534,145.89,145.83,1.371322]
[1726856469404,35.34074,145.89,145.82,36.42608543]
[1726856469699,1.71401208,145.88,145.82,36.42608543]
[1726856469911,1.71401208,145.88,145.82,16.62119]
[1726856470506,1.71401208,145.88,145.82,16.4957]
[1726856470507,8.56891208,145.88,145.82,16.4957]
[1726856470689,6.8562,145.86,145.82,16.4957]
[1726856470886,1.71441425,145.85,145.82,16.4957]
[1726856471089,23.902374,145.87,145.82,16.4957]
[1726856471294,23.902374,145.85,145.78,16.2726]
[1726856471492,1.71469508,145.84,145.78,16.2726]
[1726856472199,6.8575,145.83,145.78,16.2726]
[1726856472397,6.8569,145.84,145.78,16.2726]
[1726856472606,6.8569,145.84,145.78,17.644353]
[1726856473609,17.1359,145.9,145.79,0.12549]
[1726856474214,17.1359,145.9,145.78,16.2726]
[1726856474522,6.856,145.86,145.78,16.2726]
[1726856474912,6.8568,145.85,145.78,16.2726]
[1726856475294,6.856,145.86,145.79,1.37160005]
[1726856475493,23.776884,145.88,145.78,16.2726]
[1726856475714,6.8559,145.86,145.79,1.37148205]
[1726856476022,6.8555,145.87,145.79,1.37148205]
[1726856476400,6.8559,145.86,145.79,1.37148205]
[1726856476597,6.8559,145.86,145.78,16.2726]
[1726856476811,23.776884,145.88,145.8,1.3714806]
[1726856477108,6.8563,145.85,145.8,1.3714806]
[1726856477301,0.12549,145.87,145.79,1.37148039]
[1726856477507,6.856,145.86,145.78,16.2726]
[1726856477912,8.57077143,145.85,145.78,16.2726]
[1726856478101,1.71437143,145.85,145.78,16.2726]
[1726856478901,6.8573,145.83,145.78,16.2726]
[1726856479103,1.71469038,145.82,145.78,16.2726]
[1726856479402,6.8569,145.84,145.78,16.2726]
[1726856479797,6.8564,145.85,145.78,16.2726]
[1726856479996,6.8564,145.85,145.79,1.37161776]
[1726856481201,6.856,145.86,145.78,16.2726]
[1726856481821,8.57085147,145.85,145.78,16.2726]
[1726856482214,1.71456974,145.84,145.78,16.2726]
[1726856482414,0.12549,145.82,145.78,16.2726]
[1726856482623,0.12549,145.82,145.76,0.2450718]
[1726856482624,1.71498287,145.81,145.76,0.2450718]
[1726856483332,23.902374,145.83,145.76,0.2450718]
[1726856484331,6.8583,145.81,145.76,0.2450718]
[1726856485328,8.57374239,145.8,145.76,0.2450718]
[1726856485543,6.8583,145.81,145.76,0.2450718]
[1726856485723,1.71504235,145.82,145.76,0.2450718]
[1726856485910,6.8576,145.83,145.76,0.2450718]
[1726856486313,1.19340899,145.87,145.77,1.62280897]
[1726856486513,6.8557,145.87,145.79,15.4044]
[1726856486724,6.8557,145.87,145.8,1.37153325]
[1726856487013,35.34074,145.89,145.8,6.089]
[1726856487233,6.855,145.88,145.81,1.37145255]
[1726856487536,6.855,145.88,145.8,6.089]
[1726856488042,6.8555,145.87,145.8,6.089]
[1726856489129,6.8551,145.88,145.8,6.089]
[1726856489530,6.8551,145.88,145.81,1.37137569]
[1726856492240,42.19524,145.89,145.81,1.37137569]
[1726856492444,6.8555,145.87,145.8,6.089]
[1726856492819,6.855,145.88,145.81,1.37137703]
[1726856494636,42.19524,145.89,145.81,1.37137703]
[1726856494837,35.34074,145.89,145.81,23.902374]
[1726856495041,35.34074,145.89,145.83,15.181]
[1726856495417,1.71393105,145.88,145.83,15.181]
[1726856499335,1.71393292,145.87,145.83,15.181]
[1726856499658,42.19524,145.89,145.83,15.181]
[1726856507244,42.19554,145.89,145.81,1.37153969]
[1726856507662,35.34074,145.89,145.8,41.92568543]
[1726856507965,35.34074,145.89,145.82,12.64806857]
[1726856508262,35.34074,145.89,145.83,1.37122864]
[1726856508838,42.19534,145.89,145.83,1.37122864]
[1726856511054,42.19534,145.89,145.82,12.64806857]
[1726856511368,35.34074,145.89,145.86,35.49426857]
[1726856511980,35.34074,145.89,145.88,12.64806857]
[1726856513451,35.34074,145.89,145.87,36.67593257]
[1726856514052,35.34074,145.89,145.87,24.027864]
[1726856514642,35.34074,145.89,145.86,22.8462]
[1726856515451,35.34074,145.89,145.87,24.027864]
[1726856515972,35.34074,145.89,145.86,22.8462]
[1726856517151,35.34074,145.89,145.87,1.37082634]
[1726856517352,35.34074,145.89,145.87,24.027864]
[1726856519075,35.34074,145.89,145.87,43.77637634]
[1726856520075,35.34074,145.89,145.87,24.027864]
[1726856521354,35.34074,145.89,145.86,22.8462]
[1726856521579,35.34074,145.89,145.87,24.027864]
[1726856523382,35.34074,145.89,145.86,22.8462]
[1726856524071,35.34074,145.89,145.86,16.6331]
[1726856524574,35.34074,145.89,145.83,6.2028]
[1726856524781,1.71387408,145.88,145.82,16.2343]
[1726856525076,35.34074,145.89,145.82,16.2343]
[1726856526055,35.34074,145.89,145.83,23.776884]
[1726856527477,35.34074,145.89,145.82,16.35979]
[1726856527478,1.71384124,145.88,145.82,16.35979]
[1726856527666,1.71394589,145.87,145.82,16.2343]
[1726856527867,1.71394589,145.87,145.78,16.0836]
[1726856528098,6.8559,145.86,145.78,16.0836]
[1726856528383,6.8572,145.84,145.76,0.2450718]
[1726856528581,6.1962,145.88,145.76,0.2450718]
[1726856528582,24.027864,145.87,145.76,0.2450718]
[1726856528790,6.8562,145.86,145.76,0.2450718]
[1726856529080,8.57096857,145.85,145.76,0.2450718]
[1726856529481,8.57096857,145.85,145.77,0.12549]
[1726856532658,8.57096857,145.85,145.76,0.2450718]
[1726856532858,6.8574,145.83,145.76,0.2450718]
[1726856533065,1.7148434,145.82,145.76,0.2450718]
[1726856533483,23.902374,145.81,145.76,0.2450718]
[1726856533697,8.57416087,145.8,145.76,0.2450718]
[1726856535593,6.859,145.8,145.76,0.2450718]
[1726856536380,6.6616,145.82,145.76,0.2450718]
[1726856537365,1.71496968,145.81,145.76,0.2450718]
[1726856537588,6.8591,145.8,145.76,0.2450718]
[1726856537775,6.6616,145.82,145.76,0.2450718]
[1726856539200,6.8569,145.84,145.76,0.2450718]
[1726856540877,30.758674,145.85,145.76,16.2304718]
[1726856541193,6.8569,145.84,145.76,16.2304718]
[1726856541997,30.758874,145.85,145.76,16.2304718]
[1726856542894,6.8565,145.85,145.76,16.2304718]
[1726856543079,13.143,145.86,145.77,0.12549]
[1726856543288,13.143,145.86,145.77,23.902374]
[1726856543596,6.287,145.86,145.77,23.902374]
[1726856544292,6.8564,145.85,145.77,23.902374]
[1726856545008,23.902374,145.85,145.76,16.2304718]
[1726856545308,8.57180506,145.84,145.76,16.2304718]
[1726856546102,6.8581,145.82,145.76,16.2304718]
[1726856546307,6.8574,145.83,145.76,16.2304718]
[1726856547175,6.8569,145.84,145.76,16.2304718]
[1726856547374,1.71470274,145.83,145.76,16.2304718]
[1726856548600,8.57200274,145.83,145.76,16.2304718]
[1726856548810,30.760374,145.82,145.76,16.2304718]
[1726856549106,6.8593,145.79,145.76,0.2450718]
[1726856549279,1.71518792,145.78,145.76,0.2450718]
[1726856550107,6.8588,145.8,145.76,0.2450718]
[1726856550574,23.902374,145.82,145.76,0.2450718]
[1726856550575,6.8583,145.81,145.76,0.2450718]
[1726856553999,6.8587,145.8,145.76,0.2450718]
[1726856556003,6.8582,145.81,145.76,0.2450718]
[1726856556397,23.902374,145.82,145.76,0.2450718]
[1726856556712,6.98349,145.82,145.76,0.2450718]
[1726856557005,6.8582,145.81,145.76,0.2450718]
[1726856557795,6.8589,145.8,145.76,0.2450718]
[1726856559109,6.8583,145.81,145.76,0.2450718]
[1726856559508,6.8579,145.82,145.76,0.2450718]
[1726856559706,23.776884,145.83,145.76,0.2450718]
[1726856559908,6.8578,145.82,145.76,0.2450718]
[1726856560611,7.16981236,145.85,145.76,0.2450718]
[1726856560782,6.8568,145.84,145.76,0.2450718]
[1726856561103,1.71473265,145.83,145.77,16.0678]
[1726856561310,6.8569,145.84,145.77,16.0678]
[1726856561510,1.71470015,145.83,145.77,16.0678]
[1726856561685,8.57210015,145.83,145.77,16.0678]
[1726856562286,7.16867115,145.88,145.77,16.0678]
[1726856562287,1.71495061,145.82,145.77,16.0678]
[1726856563194,6.8582,145.81,145.77,16.0678]
[1726856563396,1.7150331,145.8,145.77,16.0678]
[1726856564314,6.8578,145.82,145.77,16.0678]
[1726856566027,1.71503112,145.81,145.77,16.0678]
[1726856566391,8.57323112,145.81,145.77,16.0678]
[1726856567105,1.71503125,145.8,145.77,16.0678]
[1726856567329,8.57383125,145.8,145.77,16.0678]
[1726856567501,8.57383125,145.8,145.76,0.2450718]
[1726856567814,6.8592,145.79,145.76,0.2450718]
[1726856568014,1.7152767,145.78,145.76,0.2450718]
[1726856568216,6.8601,145.77,145.76,0.2450718]
[1726856568395,1.7152767,145.78,145.76,0.2450718]
[1726856569019,1.71553045,145.77,145.76,0.2450718]
[1726856569524,8.57563045,145.77,145.76,0.2450718]
[1726856569727,1.71553014,145.79,145.76,0.2450718]
[1726856570100,8.57473014,145.79,145.76,0.2450718]
[1726856571425,1.71553014,145.79,145.76,0.2450718]
[1726856572198,6.8592,145.79,145.76,0.2450718]
[1726856573210,1.71531802,145.78,145.76,0.2450718]
[1726856573404,23.902374,145.8,145.76,0.2450718]
[1726856574415,6.8595,145.79,145.76,0.2450718]
[1726856575133,30.761074,145.8,145.76,0.2450718]
[1726856577524,6.8583,145.81,145.76,0.2450718]
[1726856577729,8.57386687,145.8,145.76,0.2450718]
[1726856577924,6.8593,145.79,145.76,0.2450718]
[1726856578132,1.71526723,145.78,145.76,0.2450718]
[1726856578923,1.71527216,145.78,145.76,0.2450718]
[1726856580016,6.8593,145.79,145.76,0.2450718]
[1726856580845,6.8596,145.78,145.76,0.2450718]
[1726856586121,23.902374,145.81,145.76,0.2450718]
[1726856586324,30.760874,145.81,145.76,0.2450718]
[1726856586539,6.98399,145.81,145.76,0.2450718]
[1726856586938,6.8587,145.8,145.76,0.2450718]
[1726856588023,8.57458883,145.79,145.76,0.2450718]
[1726856588223,6.8594,145.79,145.76,0.2450718]
[1726856588429,1.71518884,145.78,145.76,0.2450718]
[1726856589024,6.8588,145.8,145.76,0.2450718]
[1726856592254,43.902374,145.81,145.76,0.2450718]
[1726856592557,8.57419037,145.8,145.76,0.2450718]
[1726856594440,6.8591,145.79,145.76,0.2450718]
[1726856594642,8.57479129,145.78,145.76,0.2450718]
[1726856594850,6.8596,145.78,145.76,0.2450718]
[1726856595959,1.71540429,145.77,145.76,0.2450718]
[1726856596250,8.57550434,145.77,145.76,0.2450718]
[1726856596553,30.887964,145.77,145.76,0.2450718]
[1726856597734,6.8601,145.77,145.76,0.2450718]
[1726856600439,30.762474,145.77,145.76,0.2450718]
[1726856601243,30.887964,145.77,145.76,0.2450718]
[1726856601966,32.60373422,145.77,145.76,0.2450718]
[1726856602634,30.887964,145.77,145.76,0.2450718]
[1726856602840,32.60373537,145.77,145.76,0.2450718]
[1726856603352,25.74363537,145.77,145.71,0.3103832]
[1726856603549,44.027864,145.76,145.71,0.3103832]
[1726856603742,6.8624,145.73,145.71,0.3103832]
[1726856604163,8.57851382,145.72,145.71,0.3103832]
[1726856605262,6.98789,145.72,145.71,0.3103832]
[1726856605564,30.890264,145.72,145.71,0.3103832]
[1726856610463,6.8638,145.69,145.68,0.2450718]
[1726856610641,6.8635,145.7,145.68,0.2450718]
[1726856610977,8.70564069,145.69,145.68,0.2450718]
[1726856611142,6.98929,145.69,145.68,0.2450718]
[1726856611543,0.12549,145.69,145.68,0.2450718]
[1726856611738,1.84204608,145.69,145.68,0.2450718]
[1726856612474,0.12549,145.69,145.68,0.2450718]
[1726856614172,6.98929,145.69,145.68,0.2450718]
[1726856615574,6.8631,145.71,145.68,0.2450718]
[1726856615749,0.12549,145.7,145.68,0.2450718]
[1726856615947,6.8631,145.71,145.68,0.2450718]
[1726856616149,7.17546807,145.75,145.68,0.2450718]
[1726856616372,6.8616,145.74,145.68,0.2450718]
[1726856617675,7.17546807,145.75,145.68,14.28733364]
[1726856617881,20.0,145.78,145.68,14.28733364]
[1726856618081,6.8601,145.77,145.68,14.28733364]
[1726856618375,7.17332713,145.78,145.68,0.2450718]
[1726856618581,6.8621,145.73,145.68,0.2450718]
[1726856618781,1.71603572,145.72,145.68,0.2450718]
[1726856619076,6.8616,145.74,145.68,0.2450718]
[1726856619781,7.17332713,145.78,145.68,0.2450718]
[1726856619782,20.12549,145.75,145.68,0.2450718]
[1726856620293,0.12549,145.75,145.68,0.2450718]
[1726856620659,6.8609,145.76,145.68,0.2450718]
[1726856620996,6.8609,145.76,145.68,25.39457276]
[1726856621955,6.8609,145.76,145.68,24.0219558]
[1726856622785,27.11118,145.77,145.68,24.0219558]
[1726856623582,6.8607,145.76,145.68,24.0219558]
[1726856624570,6.8611,145.75,145.68,24.0219558]
[1726856624883,6.8615,145.74,145.68,0.2450718]
[1726856626082,6.8616,145.74,145.68,0.2450718]
[1726856628669,6.98659,145.75,145.68,1.61785465]
[1726856629582,6.8606,145.76,145.68,1.61785465]
[1726856630590,0.12549,145.76,145.68,1.61785465]
[1726856630765,7.17332713,145.78,145.7,28.99923389]
[1726856631074,6.8602,145.77,145.7,17.70224506]
[1726856631281,6.8602,145.77,145.7,16.3298]
[1726856638579,0.12549,145.77,145.7,16.3298]
[1726856638771,6.8607,145.76,145.7,16.3298]
[1726856640401,6.8603,145.77,145.7,16.3298]
[1726856642197,26.8596,145.78,145.7,16.3298]
[1726856642387,6.98559,145.77,145.7,16.3298]
[1726856642895,1.71557608,145.76,145.7,16.3298]
[1726856643099,1.71557596,145.75,145.7,16.3298]
[1726856643995,6.98559,145.77,145.7,16.3298]
[1726856644999,6.8601,145.77,145.7,16.3298]
[1726856646083,1.71555269,145.76,145.7,16.3298]
[1726856646782,8.57645269,145.76,145.7,16.3298]
[1726856647207,6.8609,145.76,145.7,16.3298]
[1726856647412,6.98569,145.77,145.7,16.3298]
[1726856647918,6.98569,145.78,145.7,16.3298]
[1726856648094,41.050374,145.79,145.73,6.8617]
[1726856649888,0.12549,145.77,145.73,6.8617]
[1726856650288,6.8605,145.76,145.72,6.8624]
[1726856650487,1.71563658,145.75,145.72,6.8624]
[1726856650722,6.8605,145.76,145.72,6.8624]
[1726856651028,1.71563902,145.75,145.72,6.8624]
[1726856651506,1.71563902,145.75,145.7,16.3298]
[1726856651814,1.71563902,145.75,145.73,6.8619]
[1726856652189,1.71561927,145.76,145.73,6.8619]
[1726856652918,6.8594,145.79,145.75,6.861]
[1726856653124,6.8596,145.78,145.71,14.04192791]
[1726856655027,6.8596,145.78,145.71,23.776884]
[1726856656430,0.12549,145.76,145.68,0.2450718]
[1726856656600,6.863,145.71,145.68,0.2450718]
[1726856656803,1.71622555,145.7,145.68,0.2450718]
[1726856657025,8.57962555,145.7,145.68,0.2450718]
[1726856657327,6.2287,145.74,145.68,0.2450718]
[1726856657516,20.25098,145.73,145.68,0.2450718]
[1726856658029,1.71623173,145.72,145.68,0.2450718]
[1726856658330,0.12549,145.71,145.68,0.2450718]
[1726856658531,1.71628747,145.7,145.68,0.2450718]
[1726856659131,8.57968747,145.7,145.68,0.2450718]
[1726856660908,6.8634,145.7,145.68,0.2450718]
[1726856661118,8.58026019,145.69,145.68,0.2450718]
[1726856661507,6.98929,145.69,145.68,0.2450718]
[1726856661816,8.70582096,145.69,145.68,0.2450718]
[1726856662327,6.98929,145.69,145.68,0.2450718]
[1726856663502,6.8635,145.7,145.68,0.2450718]
[1726856664308,6.8638,145.69,145.68,0.2450718]
[1726856669433,6.8636,145.7,145.68,0.2450718]
[1726856671020,7.17651707,145.72,145.7,6.8633]
[1726856671327,33.57095012,145.76,145.7,6.8633]
[1726856671328,6.8617,145.74,145.7,6.8633]
[1726856671726,6.862,145.73,145.7,6.8633]
[1726856671924,6.862,145.73,145.68,0.2450718]
[1726856671925,6.862,145.73,145.69,6.8636]
[1726856672636,6.8624,145.72,145.68,7.1091718]
[1726856673229,30.889764,145.74,145.69,6.8638]
[1726856673438,24.027864,145.74,145.69,6.8638]
[1726856673618,6.8623,145.73,145.69,6.8638]
[1726856676042,6.8625,145.72,145.68,7.1093718]
[1726856677948,1.71615514,145.71,145.68,7.1093718]
[1726856679844,6.8625,145.72,145.68,7.1093718]
[1726856680048,0.25098,145.74,145.68,0.2450718]
[1726856680236,6.862,145.73,145.69,6.8637]
[1726856681052,1.71600457,145.72,145.69,6.8637]
[1726856681347,44.027864,145.75,145.68,0.2450718]
[1726856682348,6.8621,145.73,145.69,6.8635]
[1726856684827,0.25098,145.75,145.68,0.2450718]
[1726856685028,6.861,145.75,145.72,6.8623]
[1726856685230,13.60443565,145.78,145.71,1.37257251]
[1726856685449,20.46433565,145.78,145.74,6.8612]
[1726856685754,13.60443565,145.78,145.72,12.66943389]
[1726856685947,7.17234719,145.81,145.75,6.8609]
[1726856685948,6.8592,145.79,145.75,6.8609]
[1726856686135,8.57487379,145.78,145.74,6.8614]
[1726856687137,1.71535496,145.77,145.74,6.8614]
[1726856687452,1.71535496,145.77,145.7,22.2332]
[1726856687751,6.8596,145.78,145.7,23.60560761]
[1726856689969,6.8596,145.78,145.7,36.2750415]
[1726856690254,6.8596,145.78,145.7,34.90263389]
[1726856690747,6.8602,145.77,145.7,34.90263389]
[1726856691662,6.8602,145.77,145.7,22.2332]
[1726856691830,1.71550774,145.76,145.7,22.2332]
[1726856692034,6.8598,145.78,145.7,22.2332]
[1726856693253,24.027864,145.8,145.7,22.2332]
[1726856693569,6.8601,145.77,145.7,22.2332]
[1726856694378,6.8598,145.78,145.7,22.2332]
[1726856695537,6.8598,145.78,145.7,34.90263389]
[1726856696558,7.11168,145.76,145.7,22.2332]
[1726856697265,24.3214275,145.79,145.7,22.2332]
[1726856697468,24.3214275,145.79,145.7,34.90263389]
[1726856697650,6.8604,145.77,145.7,34.90263389]
[1726856699560,6.8604,145.77,145.7,22.2332]
[1726856700273,6.8606,145.76,145.7,22.2332]
[1726856702352,0.25098,145.78,145.7,22.2332]
[1726856702353,6.8602,145.77,145.7,36.27520947]
[1726856702553,7.17269525,145.8,145.71,25.14933649]
[1726856702752,0.2450718,145.83,145.73,12.66943389]
[1726856702967,6.8588,145.8,145.73,12.66943389]
[1726856704182,1.71513004,145.79,145.74,15.4663]
[1726856705155,23.776884,145.81,145.74,15.4663]
[1726856705476,0.2450718,145.83,145.75,6.4916]
[1726856705779,0.2450718,145.83,145.75,19.16103389]
[1726856705976,6.8584,145.81,145.75,19.16103389]
[1726856706379,0.2450718,145.83,145.75,19.16103389]
[1726856706570,6.8587,145.8,145.75,6.4916]
[1726856706761,1.71520146,145.79,145.75,6.4916]
[1726856707353,6.8603,145.77,145.74,15.4663]
[1726856707554,6.861,145.75,145.7,22.9088]
[1726856707877,0.12549,145.75,145.7,22.9088]
[1726856708264,8.70229144,145.75,145.7,22.9088]
[1726856708457,8.70229144,145.75,145.7,16.3562]
[1726856708660,6.98649,145.75,145.71,6.8626]
[1726856708872,1.84132161,145.74,145.7,16.3562]
[1726856709187,6.98759,145.73,145.68,7.1092718]
[1726856709364,8.57847196,145.72,145.68,7.1092718]
[1726856709777,6.863,145.71,145.68,0.2450718]
[1726856710079,1.71627095,145.7,145.68,0.2450718]
[1726856710682,6.8638,145.69,145.68,0.2450718]
[1726856711155,6.98929,145.69,145.68,0.2450718]
[1726856711355,7.11478,145.69,145.68,0.2450718]
[1726856711665,7.11478,145.69,145.62,16.7646672]
[1726856711666,6.8659,145.65,145.62,0.4084672]
[1726856711854,6.8667,145.63,145.62,0.4084672]
[1726856712059,6.99219,145.63,145.62,0.4084672]
[1726856713062,0.12549,145.63,145.62,0.4084672]
[1726856713269,7.11768,145.63,145.62,0.4084672]
[1726856714789,27.11768,145.63,145.62,0.4084672]
[1726856715206,50.894564,145.63,145.62,0.4084672]
[1726856715395,7.11908,145.6,145.59,0.2450718]
[1726856715690,27.11908,145.6,145.59,0.2450718]
[1726856715868,28.83695864,145.6,145.59,0.2450718]
[1726856716185,36.01933107,145.6,145.59,0.2450718]
[1726856716394,34.30145243,145.6,145.59,0.2450718]
[1726856718377,14.58142621,145.65,145.59,0.2450718]
[1726856718575,14.04852247,145.62,145.59,0.2450718]
[1726856718780,6.8675,145.62,145.59,0.2450718]
[1726856719184,6.8681,145.6,145.59,0.2450718]
[1726856719697,8.58570841,145.6,145.59,0.2450718]
[1726856720189,8.71119841,145.6,145.59,0.2450718]
[1726856720566,7.11908,145.6,145.59,0.2450718]
[1726856722279,8.83696884,145.6,145.59,0.2450718]
[1726856722675,8.83693455,145.6,145.59,0.2450718]
[1726856722877,7.11908,145.6,145.59,0.2450718]
[1726856725696,0.25098,145.6,145.59,0.2450718]
[1726856725869,8.83669213,145.6,145.59,0.2450718]
[1726856727992,7.11908,145.6,145.59,0.2450718]
[1726856728173,0.12549,145.61,145.59,0.2450718]
[1726856728494,1.96850263,145.61,145.59,0.2450718]
[1726856728693,27.11908,145.6,145.59,0.2450718]
[1726856728900,50.895964,145.6,145.59,0.2450718]
[1726856729369,6.8703,145.56,145.54,0.3431558]
[1726856729565,1.71807853,145.55,145.54,0.3431558]
[1726856729989,0.12549,145.56,145.54,0.3431558]
[1726856731191,6.8692,145.58,145.54,0.3431558]
[1726856731375,0.12549,145.58,145.54,7.2140558]
[1726856731878,7.18007177,145.6,145.57,6.8694]
[1726856732079,6.0341,145.66,145.54,43.9642957]
[1726856732080,6.8662,145.65,145.59,6.8682]
[1726856732271,6.0341,145.66,145.56,23.776884]
[1726856732272,6.8662,145.64,145.58,16.1778]
[1726856732477,6.8662,145.64,145.59,6.8682]
[1726856732782,6.8666,145.64,145.58,23.0468]
[1726856732991,6.8672,145.62,145.58,16.1778]
[1726856733193,8.58505566,145.61,145.56,6.8695]
[1726856733994,6.8677,145.61,145.57,6.8694]
[1726856734178,1.71747446,145.6,145.57,6.8694]
[1726856734380,6.8677,145.61,145.57,6.8694]
[1726856735398,0.12549,145.62,145.58,6.869]
[1726856736096,6.99269,145.62,145.57,6.8694]
[1726856736798,6.99269,145.62,145.58,6.8688]
[1726856736997,0.12549,145.64,145.59,6.8681]
[1726856737192,20.25098,145.64,145.59,6.8681]
[1726856737573,0.25098,145.64,145.59,6.8681]
[1726856738407,6.8668,145.63,145.59,6.8681]
[1726856738707,0.12549,145.64,145.57,19.8442559]
[1726856738873,7.16888719,145.65,145.61,6.8671]
[1726856739472,7.16888719,145.65,145.61,19.8442559]
[1726856739691,7.16888719,145.65,145.63,6.8663]
[1726856740000,6.8645,145.68,145.63,6.8663]
[1726856740208,13.34092586,145.69,145.62,6.867]
[1726856740796,0.12549,145.67,145.62,6.867]
[1726856741284,6.8653,145.66,145.62,6.867]
[1726856741698,6.8669,145.63,145.61,16.3357]
[1726856742000,1.71696384,145.62,145.61,16.3357]
[1726856742185,0.12549,145.67,145.61,16.3357]
[1726856742396,6.99059,145.67,145.63,6.8665]
[1726856742998,6.99039,145.67,145.63,6.8667]
[1726856743304,6.8653,145.66,145.62,6.867]
[1726856743512,6.99039,145.67,145.63,6.8665]
[1726856743802,1.71674545,145.66,145.63,6.8665]
[1726856744114,6.99039,145.67,145.62,6.867]
[1726856745614,6.99039,145.67,145.63,6.8666]
[1726856747006,7.11548,145.68,145.64,6.8661]
[1726856747405,6.98999,145.68,145.64,6.8661]
[1726856749595,6.8644,145.68,145.64,6.866]
[1726856750204,0.12549,145.69,145.63,19.8442559]
[1726856751214,6.8644,145.68,145.64,6.8659]
[1726856753628,6.98949,145.69,145.65,6.8657]
[1726856754636,6.8643,145.68,145.65,6.8657]
[1726856756031,1.71648685,145.67,145.64,6.866]
[1726856758013,6.8643,145.68,145.64,6.866]